fUSD/lending_fUSD_20250213
["ID","MTS","AMOUNT","RATE_DAILY","PERIOD"]
[352936000,1739443852473,-1036.64,0.00015135,2]
[352936001,1739443852482,-500.0,0.00015135,2]
[352936002,1739443852492,-679.0,0.00015135,2]
[352936003,1739443852502,-500.0,0.00015135,2]
[352936004,1739443852511,-500.0,0.00015135,2]
[352936005,1739443852521,-1097.06,0.00015135,2]
[352936006,1739443852531,-500.0,0.00015135,2]
[352936007,1739443852541,-500.0,0.00015135,2]
[352936008,1739443852552,-500.0,0.00015135,2]
[352936009,1739443852561,-2114.62,0.00015135,2]
[352936010,1739443852572,-993.12,0.00015135,2]
[352936011,1739443852581,-1083.44,0.00015135,2]
[352936012,1739443852591,-500.0,0.00015135,2]
[352936013,1739443852600,-500.0,0.00015135,2]
[352936014,1739443852610,-1470.81021869,0.00015135,2]
[352936015,1739443852623,-302.26978131,0.00015135,2]
[352936016,1739443852633,-500.0,0.00015135,2]
[352936017,1739443852643,-825.03,0.00015135,2]
[352936018,1739443852653,-500.0,0.00015135,2]
[352936019,1739443852663,-503.78176183,0.00015135,2]
[352936020,1739443852673,-500.0,0.00015135,2]
[352936021,1739443852683,-500.0,0.00015135,2]
[352936022,1739443852693,-444.39820411,0.00015135,2]
[352936023,1739443852709,-60.31860326,0.00015135,2]
[352936024,1739443852720,-500.0,0.00015135,2]
[352936025,1739443852906,-500.0,0.00015135,2]
[352936026,1739443852915,-500.0,0.00015135,2]
[352936027,1739443852925,-500.0,0.00015135,2]
[352936028,1739443852935,-500.0,0.00015135,2]
[352936029,1739443852944,-500.0,0.00015135,2]
[352936030,1739443852953,-39.68169674,0.00015135,2]
[352936031,1739443852972,-1751.99410845,0.00015135,2]
[352936032,1739443852983,-532.72419481,0.00015135,2]
[352936033,1739443852993,-500.0,0.00015135,2]
[352936034,1739443853002,-181.9645122,0.00015135,2]
[352936035,1739443853014,-318.0354878,0.00015135,2]
[352936036,1739443853027,-722.03,0.00015135,2]
[352936037,1739443853038,-500.0,0.00015135,2]
[352936038,1739443853047,-2404.97,0.00015135,2]
[352936039,1739443853056,-500.0,0.00015135,2]
[352936040,1739443853066,-868.46,0.00015135,2]
[352936041,1739443853076,-197.24465745,0.00015145,2]
[352936042,1739443853086,-150.0,0.00015158,2]
[352936043,1739443853099,-2768.20114547,0.00015166,2]
[352936044,1739443853110,-150.0,0.00015166,2]
[352936045,1739443853119,-6130.37817558,0.00015168,2]
[352936046,1739443853132,-3745.17803497,0.00015168,2]
[352936047,1739443853144,-347.17271533,0.00015168,2]
[352936048,1739443853156,-43790.20648573,0.00015168,2]
[352936049,1739443853173,-1461.71998,0.00015168,2]
[352936050,1739443853186,-3772.59995057,0.00015168,2]
[352936051,1739443853871,-550.0,0.00013,2]
[352936052,1739443853882,-500.0,0.00014438,2]
[352936053,1739443853893,-5067.55833926,0.00015168,2]
[352936054,1739443853906,-3089.79999999,0.00015168,2]
[352936055,1739443853918,-551.275395,0.00015168,2]
[352936056,1739443853930,-397.87610775,0.00015168,2]
[352936057,1739443853942,-5658.19561849,0.00015168,2]
[352936058,1739443853952,-500.0,0.00015173,2]
[352936059,1739443853962,-500.35670292,0.00015173,2]
[352936060,1739443853975,-179.91754003,0.00015173,2]
[352936061,1739443853984,-152.45195828,0.00015173,2]
[352936062,1739443853995,-207.79239319,0.00015173,2]
[352936063,1739443854004,-152.42661289,0.00015173,2]
[352936064,1739443854018,-163.81121235,0.00015173,2]
[352936065,1739443854027,-152.76477623,0.00015173,2]
[352936066,1739443854039,-500.0,0.00015173,2]
[352936067,1739443854050,-150.0,0.00015176,2]
[352936068,1739443854062,-150.0,0.00015178,2]
[352936069,1739443854072,-150.0,0.00015178,2]
[352936070,1739443854084,-1267.99,0.00015178,2]
[352936071,1739443854096,-1255.51,0.00015178,2]
[352936072,1739443854108,-727.46,0.00015178,2]
[352936073,1739443854119,-2013.09,0.00015178,2]
[352936074,1739443854129,-86667.69960643,0.00015179,2]
[352936075,1739443854141,-398.72952442,0.00015179,2]
[352936076,1739443854152,-151.0,0.00015179,2]
[352936077,1739443854162,-208.717055,0.00015179,2]
[352936078,1739443854172,-208.717055,0.00015179,2]
[352936079,1739443854182,-289.0,0.00015179,30]
[352936080,1739443854192,-150.0,0.0001518,2]
[352936081,1739443854203,-150.0,0.00015186,2]
[352936082,1739443854213,-500.0,0.0001519,2]
[352936083,1739443854224,-500.0,0.0001519,2]
[352936084,1739443854235,-1267.99,0.0001519,2]
[352936085,1739443854246,-652.79784189,0.00015191,2]
[352936086,1739443854256,-504.03599591,0.00015191,2]
[352936087,1739443854265,-500.0,0.00015191,2]
[352936088,1739443854276,-500.0,0.00015191,2]
[352936089,1739443854287,-500.0,0.00015191,2]
[352936090,1739443854297,-500.0,0.00015191,2]
[352936091,1739443854308,-500.0,0.00015191,2]
[352936092,1739443854319,-356.23619404,0.00015191,2]
[352936093,1739443854329,-501.87522391,0.00015191,2]
[352936094,1739443854339,-500.0,0.00015191,2]
[352936095,1739443854348,-503.33310372,0.00015191,2]
[352936096,1739443854358,-500.0,0.00015191,2]
[352936097,1739443854371,-500.0,0.00015191,2]
[352936098,1739443854381,-222.30421584,0.00015191,2]
[352936099,1739443854391,-252.20488445,0.00015191,2]
[352936100,1739443854402,-635.4667227,0.00015191,2]
[352936101,1739443854412,-181.17320664,0.00015191,2]
[352936102,1739443854423,-500.0,0.00015191,2]
[352936103,1739443854432,-500.0,0.00015191,2]
[352936104,1739443854442,-550.72606086,0.00015191,2]
[352936105,1739443854453,-500.0,0.00015191,2]
[352936106,1739443854464,-500.0,0.00015191,2]
[352936107,1739443854476,-1046.41,0.00015191,2]
[352936108,1739443854486,-500.0,0.00015191,2]
[352936109,1739443854495,-500.0,0.00015191,2]
[352936110,1739443854506,-500.0,0.00015191,2]
[352936111,1739443854515,-1127.92,0.00015191,2]
[352936112,1739443854525,-500.0,0.00015191,2]
[352936113,1739443854538,-150.0,0.00015191,2]
[352936114,1739443854548,-1053.21,0.00015191,2]
[352936115,1739443854557,-971.43,0.00015191,2]
[352936116,1739443854566,-513.66,0.00015191,2]
[352936117,1739443854576,-1327.4,0.00015191,2]
[352936118,1739443854588,-1115.14,0.00015191,2]
[352936119,1739443854598,-1422.64,0.00015191,2]
[352936120,1739443854609,-2201.77,0.00015191,2]
[352936121,1739443854618,-1092.07,0.00015191,2]
[352936122,1739443854628,-500.0,0.00015191,2]
[352936123,1739443854638,-1309.3,0.00015191,2]
[352936124,1739443854647,-500.0,0.00015191,2]
[352936125,1739443854657,-1920.99,0.00015191,2]
[352936126,1739443854666,-928.22,0.00015191,2]
[352936127,1739443854675,-1820.55,0.00015191,2]
[352936128,1739443854685,-1933.65,0.00015191,2]
[352936129,1739443854694,-1833.92,0.00015191,2]
[352936130,1739443854703,-1364.34,0.00015191,2]
[352936131,1739443854711,-1049.25,0.00015191,2]
[352936132,1739443854722,-151.0,0.00015191,2]
[352936133,1739443854731,-691.91,0.00015191,2]
[352936134,1739443854740,-500.0,0.00015191,2]
[352936135,1739443854749,-1208.0,0.00015191,2]
[352936136,1739443854758,-2105.73,0.00015191,2]
[352936137,1739443854768,-500.0,0.00015191,2]
[352936138,1739443854777,-2077.09,0.00015191,2]
[352936139,1739443854787,-1018.18,0.00015191,2]
[352936140,1739443854796,-1213.71,0.00015191,2]
[352936141,1739443854806,-587.46,0.00015191,2]
[352936142,1739443854816,-500.0,0.00015191,2]
[352936143,1739443854825,-500.0,0.00015191,2]
[352936144,1739443854835,-2695.32,0.00015191,2]
[352936145,1739443854845,-536.06,0.00015191,2]
[352936146,1739443854855,-3874.75,0.00015191,2]
[352936147,1739443854864,-500.0,0.00015191,2]
[352936148,1739443854873,-1073.02,0.00015191,2]
[352936149,1739443854883,-10130.99,0.00015191,2]
[352936150,1739443854892,-507.15,0.00015191,2]
[352936151,1739443854902,-2134.6,0.00015191,2]
[352936152,1739443854911,-1169.32,0.00015191,2]
[352936153,1739443854921,-576.12,0.00015191,2]
[352936154,1739443854930,-500.0,0.00015191,2]
[352936155,1739443854939,-1781.68,0.00015191,2]
[352936156,1739443854949,-1266.82,0.00015191,2]
[352936157,1739443854959,-3001.81,0.00015191,2]
[352936158,1739443854969,-500.0,0.00015191,2]
[352936159,1739443854978,-500.0,0.00015191,2]
[352936160,1739443854987,-1051.32,0.00015191,2]
[352936161,1739443854997,-500.0,0.00015191,2]
[352936162,1739443855007,-1707.54,0.00015191,2]
[352936163,1739443855020,-2753.47,0.00015191,2]
[352936164,1739443855030,-3546.06,0.00015191,2]
[352936165,1739443855039,-2280.18,0.00015191,2]
[352936166,1739443855049,-2820.55,0.00015191,2]
[352936167,1739443855059,-651.69,0.00015191,2]
[352936168,1739443855070,-2836.05,0.00015191,2]
[352936169,1739443855080,-3173.41,0.00015191,2]
[352936170,1739443855089,-621.71,0.00015192,2]
[352936171,1739443855103,-500.0,0.00015192,2]
[352936172,1739443855113,-500.0,0.00015192,2]
[352936173,1739443855124,-500.0,0.00015192,2]
[352936174,1739443855134,-500.0,0.00015192,2]
[352936175,1739443855143,-500.0,0.00015192,2]
[352936176,1739443855154,-500.0,0.00015192,2]
[352936177,1739443855165,-500.0,0.00015192,2]
[352936178,1739443855175,-500.0,0.00015192,2]
[352936179,1739443855186,-500.0,0.00015192,2]
[352936180,1739443855196,-500.0,0.00015192,2]
[352936181,1739443855205,-500.0,0.00015192,2]
[352936182,1739443855215,-500.0,0.00015192,2]
[352936183,1739443855226,-500.0,0.00015192,2]
[352936184,1739443855235,-500.0,0.00015192,2]
[352936185,1739443855244,-500.0,0.00015192,2]
[352936186,1739443855254,-502.2682517,0.00015192,2]
[352936187,1739443855263,-500.0,0.00015192,2]
[352936188,1739443855273,-500.0,0.00015192,2]
[352936189,1739443855282,-502.63562985,0.00015192,2]
[352936190,1739443855291,-736.48,0.00015192,2]
[352936191,1739443855300,-500.0,0.00015192,2]
[352936192,1739443855310,-500.0,0.00015192,2]
[352936193,1739443855319,-500.0,0.00015192,2]
[352936194,1739443855328,-500.0,0.00015192,2]
[352936195,1739443855338,-500.0,0.00015192,2]
[352936196,1739443855347,-500.0,0.00015192,2]
[352936197,1739443855357,-500.57796219,0.00015192,2]
[352936198,1739443855367,-500.0,0.00015192,2]
[352936199,1739443855376,-500.0,0.00015192,2]
[352936200,1739443855386,-500.0,0.00015192,2]
[352936201,1739443855395,-505.22833877,0.00015192,2]
[352936202,1739443855405,-500.0,0.00015192,2]
[352936203,1739443855414,-611.0,0.00015192,2]
[352936204,1739443855423,-500.0,0.00015192,2]
[352936205,1739443855433,-500.0,0.00015192,2]
[352936206,1739443855442,-500.0,0.00015192,2]
[352936207,1739443855608,-503.09602669,0.00015192,2]
[352936208,1739443855617,-500.0,0.00015192,2]
[352936209,1739443855626,-500.0,0.00015192,2]
[352936210,1739443855635,-500.0,0.00015192,2]
[352936211,1739443855645,-707.2,0.00015192,2]
[352936212,1739443855654,-500.0,0.00015192,2]
[352936213,1739443855663,-500.0,0.00015192,2]
[352936214,1739443855672,-500.0,0.00015192,2]
[352936215,1739443855681,-505.54,0.00015192,2]
[352936216,1739443855692,-500.0,0.00015192,2]
[352936217,1739443855701,-935.31,0.00015192,2]
[352936218,1739443855710,-500.0,0.00015192,2]
[352936219,1739443855720,-500.0,0.00015192,2]
[352936220,1739443855729,-500.0,0.00015192,2]
[352936221,1739443855738,-500.0,0.00015192,2]
[352936222,1739443855747,-500.0,0.00015192,2]
[352936223,1739443855756,-500.0,0.00015192,2]
[352936224,1739443855766,-500.0,0.00015192,2]
[352936225,1739443855776,-744.56,0.00015192,2]
[352936226,1739443855786,-500.0,0.00015192,2]
[352936227,1739443855798,-587.83,0.00015192,2]
[352936228,1739443855810,-500.0,0.00015192,2]
[352936229,1739443855821,-929.41,0.00015192,2]
[352936230,1739443855831,-500.0,0.00015192,2]
[352936231,1739443855842,-500.0,0.00015192,2]
[352936232,1739443855852,-500.0,0.00015192,2]
[352936233,1739443855862,-500.0,0.00015192,2]
[352936234,1739443855871,-500.0,0.00015192,2]
[352936235,1739443855882,-500.0,0.00015192,2]
[352936236,1739443855891,-982.57,0.00015192,2]
[352936237,1739443855900,-500.0,0.00015192,2]
[352936238,1739443855909,-500.0,0.00015192,2]
[352936239,1739443855917,-501.89680683,0.00015192,2]
[352936240,1739443855926,-500.0,0.00015192,2]
[352936241,1739443855935,-500.0,0.00015194,2]
[352936242,1739443855946,-150.0,0.00015197,2]
[352936243,1739443855955,-150.0,0.00015199,2]
[352936244,1739443855967,-1000.0,0.000152,2]
[352936245,1739443855977,-416.68652665,0.00015202,2]
[352936246,1739443855987,-150.0,0.00015204,2]
[352936247,1739443855998,-866.0,0.00015205,2]
[352936248,1739443856009,-866.0,0.00015205,2]
[352936249,1739443856023,-866.0,0.00015205,2]
[352936250,1739443856033,-866.0,0.00015205,2]
[352936251,1739443856043,-866.0,0.00015205,2]
[352936252,1739443856054,-866.0,0.00015205,2]
[352936253,1739443856067,-866.0,0.00015205,2]
[352936254,1739443856077,-866.0,0.00015205,2]
[352936255,1739443856088,-866.0,0.00015205,2]
[352936256,1739443856100,-866.0,0.00015205,2]
[352936257,1739443856110,-866.0,0.00015205,2]
[352936258,1739443856120,-474.0,0.00015205,2]
[352936259,1739443856132,-151.0,0.00015205,2]
[352936260,1739443856143,-150.0,0.00015209,2]
[352936261,1739443856154,-2768.20114547,0.0001521,2]
[352936262,1739443856164,-150.0,0.00015211,2]
[352936263,1739443856175,-150.0,0.00015225,2]
[352936264,1739443856187,-924.0,0.00015231,2]
[352936265,1739443856198,-150.0,0.00015234,2]
[352936266,1739443856207,-150.0,0.00015243,2]
[352936267,1739443856218,-150.0,0.00015246,2]
[352936268,1739443856228,-150.0,0.00015248,2]
[352936269,1739443856237,-1956.43519,0.0001525,2]
[352936270,1739443856246,-440.27828,0.0001525,2]
[352936271,1739443856256,-2768.20114547,0.00015255,2]
[352936272,1739443856266,-150.0,0.00015259,2]
[352936273,1739443856275,-150.0,0.00015262,2]
[352936274,1739443856284,-500.0,0.00015271,2]
[352936275,1739443856294,-500.0,0.00015271,2]
[352936276,1739443856303,-500.0,0.00015271,2]
[352936277,1739443856313,-500.0,0.00015271,2]
[352936278,1739443856324,-1478.3,0.00015271,2]
[352936279,1739443856335,-500.0,0.00015271,2]
[352936280,1739443856345,-500.0,0.00015271,2]
[352936281,1739443856355,-1116.97,0.00015271,2]
[352936282,1739443856364,-2082.47,0.00015271,2]
[352936283,1739443856375,-981.4,0.00015271,2]
[352936284,1739443856385,-1301.82,0.00015271,2]
[352936285,1739443856397,-1913.05,0.00015271,2]
[352936286,1739443856407,-1906.67,0.00015271,2]
[352936287,1739443856416,-966.34,0.00015271,2]
[352936288,1739443856426,-500.0,0.00015271,2]
[352936289,1739443856435,-945.44,0.00015271,2]
[352936290,1739443856445,-853.62,0.00015271,2]
[352936291,1739443856456,-766.02,0.00015271,2]
[352936292,1739443856468,-728.38,0.00015271,2]
[352936293,1739443856477,-1098.24,0.00015271,2]
[352936294,1739443856487,-500.0,0.00015271,2]
[352936295,1739443856497,-500.0,0.00015271,2]
[352936296,1739443856507,-1452.25,0.00015271,2]
[352936297,1739443856519,-859.38,0.00015271,2]
[352936298,1739443856529,-657.44,0.00015271,2]
[352936299,1739443856539,-1485.2,0.00015271,2]
[352936300,1739443856549,-954.91,0.00015271,2]
[352936301,1739443856559,-1075.0,0.00015271,2]
[352936302,1739443856570,-846.94,0.00015271,2]
[352936303,1739443856580,-1720.47,0.00015271,2]
[352936304,1739443856590,-2115.18,0.00015271,2]
[352936305,1739443856599,-500.0,0.00015271,2]
[352936306,1739443856610,-500.0,0.00015271,2]
[352936307,1739443856621,-500.0,0.00015271,2]
[352936308,1739443856630,-508.34,0.00015271,2]
[352936309,1739443856639,-500.0,0.00015271,2]
[352936310,1739443856648,-500.0,0.00015271,2]
[352936311,1739443856659,-500.0,0.00015271,2]
[352936312,1739443856669,-500.0,0.00015271,2]
[352936313,1739443856679,-1061.8,0.00015271,2]
[352936314,1739443856689,-963.18,0.00015271,2]
[352936315,1739443856700,-552.71,0.00015271,2]
[352936316,1739443856709,-706.57,0.00015271,2]
[352936317,1739443856720,-976.08,0.00015271,2]
[352936318,1739443856729,-500.0,0.00015271,2]
[352936319,1739443856739,-577.23,0.00015271,2]
[352936320,1739443856748,-629.12,0.00015271,2]
[352936321,1739443856759,-500.0,0.00015271,2]
[352936322,1739443856769,-151.0,0.00015271,2]
[352936323,1739443856779,-1343.13,0.00015271,2]
[352936324,1739443856789,-768.2,0.00015271,2]
[352936325,1739443856800,-1177.03,0.00015271,2]
[352936326,1739443856810,-1002.17,0.00015271,2]
[352936327,1739443856819,-500.0,0.00015271,2]
[352936328,1739443856830,-500.0,0.00015271,2]
[352936329,1739443856840,-500.0,0.00015271,2]
[352936330,1739443856849,-1824.68,0.00015271,2]
[352936331,1739443856859,-500.0,0.00015271,2]
[352936332,1739443856869,-728.64,0.00015271,2]
[352936333,1739443856879,-560.02810346,0.00015271,2]
[352936334,1739443856889,-689.27,0.00015271,2]
[352936335,1739443856899,-500.0,0.00015271,2]
[352936336,1739443856909,-500.0,0.00015271,2]
[352936337,1739443856918,-1713.92,0.00015271,2]
[352936338,1739443856928,-500.0,0.00015271,2]
[352936339,1739443856939,-500.0,0.00015271,2]
[352936340,1739443856948,-890.07,0.00015271,2]
[352936341,1739443856958,-500.0,0.00015271,2]
[352936342,1739443856968,-1262.66,0.00015271,2]
[352936343,1739443856978,-500.0,0.00015271,2]
[352936344,1739443856989,-500.0,0.00015271,2]
[352936345,1739443856999,-980.91,0.00015271,2]
[352936346,1739443857011,-500.0,0.00015271,2]
[352936347,1739443857025,-1623.92,0.00015271,2]
[352936348,1739443857036,-618.24,0.00015271,2]
[352936349,1739443857045,-669.09,0.00015271,2]
[352936350,1739443857055,-1790.26,0.00015271,2]
[352936351,1739443857065,-500.0,0.00015271,2]
[352936352,1739443857075,-500.0,0.00015271,2]
[352936353,1739443857086,-500.0,0.00015271,2]
[352936354,1739443857098,-500.0,0.00015271,2]
[352936355,1739443857108,-1096.12,0.00015271,2]
[352936356,1739443857118,-829.01,0.00015271,2]
[352936357,1739443857128,-923.73,0.00015271,2]
[352936358,1739443857139,-500.0,0.00015271,2]
[352936359,1739443857151,-2866.14,0.00015271,2]
[352936360,1739443857161,-2105.69,0.00015271,2]
[352936361,1739443857171,-500.0,0.00015271,2]
[352936362,1739443857181,-1617.87,0.00015271,2]
[352936363,1739443857192,-1267.99,0.00015271,2]
[352936364,1739443857203,-500.0,0.00015271,2]
[352936365,1739443857213,-500.0,0.00015271,2]
[352936366,1739443857222,-2000.75,0.00015271,2]
[352936367,1739443857231,-1588.4,0.00015271,2]
[352936368,1739443857240,-153.052836,0.00015271,2]
[352936369,1739443857250,-3007.44,0.00015271,2]
[352936370,1739443857259,-1029.44,0.00015271,2]
[352936371,1739443857268,-793.4,0.00015271,2]
[352936372,1739443857277,-500.0,0.00015271,2]
[352936373,1739443857286,-1008.19,0.00015271,2]
[352936374,1739443857295,-500.0,0.00015271,2]
[352936375,1739443857305,-4237.92,0.00015271,2]
[352936376,1739443857314,-1601.66,0.00015271,2]
[352936377,1739443857323,-1829.19,0.00015271,2]
[352936378,1739443857332,-1104.64,0.00015271,2]
[352936379,1739443857342,-500.0,0.00015271,2]
[352936380,1739443857351,-500.0,0.00015271,2]
[352936381,1739443857360,-2375.42,0.00015271,2]
[352936382,1739443857369,-915.13,0.00015271,2]
[352936383,1739443857379,-500.0,0.00015271,2]
[352936384,1739443857388,-500.0,0.00015271,2]
[352936385,1739443857397,-500.0,0.00015271,2]
[352936386,1739443857406,-567.82,0.00015271,2]
[352936387,1739443857416,-2525.85,0.00015271,2]
[352936388,1739443857426,-500.0,0.00015271,2]
[352936389,1739443857435,-5287.93,0.00015271,2]
[352936390,1739443857443,-362.49654168,0.00015271,2]
[352936391,1739443857453,-1611.91,0.00015271,2]
[352936392,1739443857462,-1986.4,0.00015271,2]
[352936393,1739443857471,-500.0,0.00015271,2]
[352936394,1739443857480,-1033.7,0.00015271,2]
[352936395,1739443857489,-500.0,0.00015271,2]
[352936396,1739443857498,-195.149381,0.00015271,2]
[352936397,1739443857507,-1719.66,0.00015271,2]
[352936398,1739443857517,-631.15,0.00015271,2]
[352936399,1739443857526,-519.14,0.00015271,2]
[352936400,1739443857536,-3214.58,0.00015271,2]
[352936401,1739443857546,-500.0,0.00015271,2]
[352936402,1739443857555,-2344.51,0.00015271,2]
[352936403,1739443857563,-3492.18,0.00015271,2]
[352936404,1739443857573,-500.0,0.00015271,2]
[352936405,1739443857582,-3790.0,0.00015271,2]
[352936406,1739443857592,-2735.52,0.00015271,2]
[352936407,1739443857602,-2250.62,0.00015271,2]
[352936408,1739443857611,-980.28,0.00015271,2]
[352936409,1739443857620,-1065.92,0.00015271,2]
[352936410,1739443857629,-1401.66,0.00015271,2]
[352936411,1739443857638,-1350.88,0.00015271,2]
[352936412,1739443857646,-2894.52,0.00015271,2]
[352936413,1739443857655,-1969.27,0.00015271,2]
[352936414,1739443857664,-500.0,0.00015271,2]
[352936415,1739443857673,-4378.5,0.00015271,2]
[352936416,1739443857682,-491.11071783,0.00015271,2]
[352936417,1739443857691,-500.0,0.00015271,2]
[352936418,1739443857700,-155.9957917,0.00015271,2]
[352936419,1739443857709,-500.0,0.00015271,2]
[352936420,1739443857718,-2823.89,0.00015271,2]
[352936421,1739443857727,-3847.69,0.00015271,2]
[352936422,1739443857737,-2358.91,0.00015271,2]
[352936423,1739443857746,-783.74,0.00015271,2]
[352936424,1739443857754,-8592.69,0.00015271,2]
[352936425,1739443857763,-500.0,0.00015271,2]
[352936426,1739443857776,-500.0,0.00015271,2]
[352936427,1739443857785,-556.08,0.00015271,2]
[352936428,1739443857794,-3393.84,0.00015271,2]
[352936429,1739443857803,-1772.29,0.00015271,2]
[352936430,1739443857812,-3328.91,0.00015271,2]
[352936431,1739443857821,-3656.39,0.00015271,2]
[352936432,1739443857830,-208.717055,0.00015271,2]
[352936433,1739443857839,-553.0,0.00015271,2]
[352936434,1739443857849,-500.0,0.00015271,2]
[352936435,1739443857859,-5319.49,0.00015271,2]
[352936436,1739443857870,-208.717055,0.00015271,2]
[352936437,1739443857880,-3496.08,0.00015271,2]
[352936438,1739443857891,-538.05,0.00015271,2]
[352936439,1739443857901,-1550.29,0.00015271,2]
[352936440,1739443857912,-2159.6,0.00015271,2]
[352936441,1739443857922,-2440.45,0.00015271,2]
[352936442,1739443857933,-2964.5,0.00015271,2]
[352936443,1739443857943,-4339.01,0.00015271,2]
[352936444,1739443857953,-500.0,0.00015271,2]
[352936445,1739443857962,-3253.76,0.00015271,2]
[352936446,1739443857973,-1876.98,0.00015271,2]
[352936447,1739443857982,-776.37,0.00015271,2]
[352936448,1739443857992,-7343.05,0.00015271,2]
[352936449,1739443858001,-1186.71,0.00015271,2]
[352936450,1739443858164,-4863.89,0.00015271,2]
[352936451,1739443858174,-500.0,0.00015271,2]
[352936452,1739443858184,-500.0,0.00015271,2]
[352936453,1739443858194,-500.0,0.00015271,2]
[352936454,1739443858203,-500.0,0.00015271,2]
[352936455,1739443858212,-2002.51,0.00015271,2]
[352936456,1739443858222,-4805.51,0.00015271,2]
[352936457,1739443858237,-500.0,0.00015271,2]
[352936458,1739443858246,-3115.47,0.00015271,2]
[352936459,1739443858255,-500.0,0.00015271,2]
[352936460,1739443858263,-902.27,0.00015271,2]
[352936461,1739443858273,-500.0,0.00015271,2]
[352936462,1739443858282,-2436.75,0.00015271,2]
[352936463,1739443858291,-3402.75,0.00015271,2]
[352936464,1739443858300,-2214.26,0.00015271,2]
[352936465,1739443858310,-5112.93,0.00015271,2]
[352936466,1739443858320,-603.15,0.00015271,2]
[352936467,1739443858329,-3736.01,0.00015271,2]
[352936468,1739443858338,-1004.58,0.00015271,2]
[352936469,1739443858349,-5826.01,0.00015271,2]
[352936470,1739443858359,-2309.53,0.00015271,2]
[352936471,1739443858369,-1207.32,0.00015271,2]
[352936472,1739443858379,-500.0,0.00015271,2]
[352936473,1739443858388,-500.0,0.00015271,2]
[352936474,1739443858398,-500.0,0.00015271,2]
[352936475,1739443858408,-1798.08,0.00015271,2]
[352936476,1739443858419,-4422.12,0.00015271,2]
[352936477,1739443858428,-2377.37,0.00015271,2]
[352936478,1739443858437,-500.0,0.00015271,2]
[352936479,1739443858448,-1439.63,0.00015271,2]
[352936480,1739443858459,-1442.76,0.00015271,2]
[352936481,1739443858469,-500.0,0.00015271,2]
[352936482,1739443858481,-1184.61,0.00015271,2]
[352936483,1739443858491,-3038.54,0.00015271,2]
[352936484,1739443858500,-2277.43,0.00015271,2]
[352936485,1739443858510,-1504.24,0.00015271,2]
[352936486,1739443858519,-282.51384547,0.00015271,2]
[352936487,1739443858528,-500.0,0.00015271,2]
[352936488,1739443858539,-500.0,0.00015271,2]
[352936489,1739443858550,-1154.19,0.00015271,2]
[352936490,1739443858561,-1355.94,0.00015271,2]
[352936491,1739443858572,-500.0,0.00015271,2]
[352936492,1739443858582,-1267.78,0.00015271,2]
[352936493,1739443858593,-500.0,0.00015271,2]
[352936494,1739443858603,-500.0,0.00015271,2]
[352936495,1739443858612,-3619.38,0.00015271,2]
[352936496,1739443858623,-1269.13,0.00015271,2]
[352936497,1739443858633,-500.0,0.00015271,2]
[352936498,1739443858644,-500.0,0.00015271,2]
[352936499,1739443858653,-950.51,0.00015271,2]